Cogmind - Beta 13 @@@ ROGUE MODE // 2024.04.16 @ 08:47:27 Player: Jason Result: Destroyed by G-34 Mercenary with Small Laser Performance ------------- Evolutions (1) 500 Regions Visited (3) 600 Robots Destroyed (52) 260 Value Destroyed (1177) 1177 Prototype IDs (2) 40 Alien Tech Used (0) 0 Bonus (156) 156 TOTAL SCORE: 2733 Bonus ------- High Alert Combat Kills 156 Cogmind --------- Core Integrity 0/400 Matter 280/300 Energy 93/250 System Corruption 0% Temperature Cool (6) Movement Walking (120) Location -9/Materials Parts ------- > --- POWER (1) -------- Ion Engine > --- PROPULSION (2) --- Carbon-fiber Leg Carbon-fiber Leg > --- UTILITY (4) ------ Medium Storage Unit Improved Terrain Scan Processor > --- WEAPON (2) ------- Assault Cannon Assault Cannon > --- INVENTORY (10) --- Ion Engine Combat Airjet Mining Laser Peak State ------------ > --- POWER ------------ Ion Engine > --- PROPULSION ------- Carbon-fiber Leg Carbon-fiber Leg > --- UTILITY ---------- Medium Storage Unit Structural Scanner Improved Terrain Scan Processor > --- WEAPON ----------- Advanced Beam Cannon Advanced Beam Cannon > --- INVENTORY -------- Ion Engine Carbon-fiber Leg Carbon-fiber Leg Combat Airjet Assault Cannon Assault Cannon Grenade Launcher Mining Laser [Rating: 20] Favorites ----------- Power Ion Engine Engine Ion Engine Propulsion Aluminum Leg Leg Aluminum Leg Hover Unit Combat Airjet Flight Unit Flight Unit Utility Small Storage Unit Device Improved Terrain Scanner Storage Small Storage Unit Processor Signal Interpreter Weapon Assault Rifle Energy Gun EM Pulse Gun Energy Cannon Advanced Beam Cannon Ballistic Gun Assault Rifle Ballistic Cannon Assault Cannon Launcher Rocket Launcher Special Weapon Mining Laser Build | -11 -10 -10 -9 ------- Run | Yrd Mat Min Mat Slots Evolved 2 | . . . 2 Power . | . . . . Propulsion . | . . . . Utility 2 | . . . 2 Weapon . | . . . . Parts Attached 54 | 10 10 7 27 Power 4 | 1 1 . 2 Engine 4 | 1 1 . 2 Core . | . . . . Reactor . | . . . . Propulsion 16 | 2 3 3 8 Treads . | . . . . Leg 13 | 2 3 1 7 Wheel . | . . . . Hover 2 | . . 1 1 Flight 1 | . . 1 . Utility 12 | 2 1 3 6 Device 7 | 1 1 2 3 Storage 3 | 1 . . 2 Processor 2 | . . 1 1 Hackware . | . . . . Protection . | . . . . Artifact . | . . . . Weapon 22 | 5 5 1 11 Energy Gun 2 | 1 1 . . Energy Cannon 4 | . . . 4 Ballistic Gun 7 | 2 4 . 1 Ballistic Cannon 2 | . . . 2 Launcher 5 | . . 1 4 Special Weapon 2 | 2 . . . Impact Weapon . | . . . . Slashing Weapon . | . . . . Piercing Weapon . | . . . . Special Melee Weapon . | . . . . Unidentified Prototypes 2 | . . . 2 Parts Lost 13 | . . . 13 Power 1 | . . . 1 Propulsion 3 | . . . 3 Utility 4 | . . . 4 Weapon 5 | . . . 5 Highest Loss Streak 7 | . . . 7 To Critical Strikes . | . . . . Average Slot Usage (%) 88 | . 99 100 74 Engine 12 | . 13 14 10 Leg 20 | . 28 26 12 Hover 3 | . . 1 6 Device 13 | . 14 14 13 Storage 7 | . 14 7 2 Processor 4 | . . 6 6 Energy Gun 5 | . 3 14 1 Energy Cannon 5 | . . . 13 Ballistic Gun 8 | . 23 . . Launcher 4 | . . 13 4 Naked Turns . | . . . . Heaviest Build 25 | 15 15 17 25 Greatest Support 30 | 20 20 20 30 Greatest Overweight (x) 4 | 1 . 2 4 Average Overweight (x) . | . . . . Largest Inventory Capacity 10 | 8 8 8 10 Average Capacity 7 | 7 8 6 6 Most Carried 9 | 5 8 8 9 Average Carried 5 | 3 6 6 5 Final Capacity 10 | 8 8 5 10 Final Carried 8 | 5 8 4 3 Class Distribution -------------------- 96% | Mutant Dominant Class ---------------- Mutant | -10/Materials Mutant | -10/Mines Mutant | -9/Materials Resources | -11 -10 -10 -9 ----------- Run | Yrd Mat Min Mat Matter Collected 1375 | 305 485 66 519 Remotely . | . . . . Salvage Created 1378 | 61 319 . 998 Parts 106 | 12 26 . 68 Haulers Intercepted 3 | . 2 . 1 Recyclers Shooed 1 | . . 1 . Parts Field Recycled . | . . . . Retrieved Matter . | . . . . Parts Self-Destructed . | . . . . Prevented . | . . . . Kills | -11 -10 -10 -9 ------- Run | Yrd Mat Min Mat Combat Hostiles Destroyed 35 | . 5 . 30 Guns 6 | . 5 . 1 Cannons 17 | . . . 17 AOE 11 | . . . 11 Classes Destroyed 9 | 1 5 . 3 Worker 3 | . . . 3 Builder 2 | . 2 . . Tunneler 4 | 4 . . . Hauler 3 | . 2 . 1 Watcher 5 | . 3 . 2 Swarmer 12 | . 3 . 9 Grunt 16 | . 2 . 14 Duelist 1 | . . . 1 Sentry 6 | . . . 6 Best Kill Streak 9 | 3 3 . 9 Combat Bots Only 4 | . 3 . 4 Max Kills in Single Turn 3 | 1 1 . 3 Gunslinging . | . . . . Exploded 2 | . . . 2 Melee . | . . . . Uniques/NPCs Destroyed . | . . . . Combat | -11 -10 -10 -9 -------- Run | Yrd Mat Min Mat Hostile Shots Fired 239 | . 39 . 200 Missed 76 | . 15 . 61 Damage Taken 1979 | . 258 . 1721 Core 465 | . 61 . 404 Absorbed by Shields . | . . . . Regen/Repaired (Parts) 112 | . 27 . 85 Core Remaining (%) 87 | 100 . 75 . Volleys Fired 137 | 16 38 4 79 Largest 2 | 2 2 1 2 Hottest 200 | 200 200 40 136 Shots Fired 244 | 32 76 4 132 Gun 112 | 12 74 4 22 Cannon 93 | . . . 93 Launcher 17 | . . . 17 Special 22 | 20 2 . . Kinetic 96 | 11 66 . 19 Thermal 109 | 20 2 . 87 Explosive 17 | . . . 17 Electromagnetic 22 | 1 8 4 9 Robot Hit Streak 11 | 5 8 5 11 Robot Miss Streak 7 | 1 4 . 7 Penetration Max . | . . . . Secondary Targets 1 | . 1 . . Max Gunslinging Chain 1 | . 1 . . Shots Hit Robots 126 | 9 43 4 70 Core Hits 75 | 4 19 1 51 Critical Kills 1 | . . . 1 Critical Parts Destroyed 1 | . 1 . . Critical Strikes 3 | . 1 1 1 Meltdown 1 | . . . 1 Destroy 1 | . 1 . . Corrupt 1 | . . 1 . Melee Attacks . | . . . . Impact . | . . . . Slashing . | . . . . Piercing . | . . . . Sneak Attacks . | . . . . Combat Hostiles . | . . . . Follow-up Attacks . | . . . . Damage Inflicted 3007 | 133 604 54 2216 Guns 897 | 109 580 49 159 Cannons 1167 | . . . 1167 Explosions 914 | . 24 . 890 Melee . | . . . . Ramming 5 | . . 5 . Kinetic 766 | 94 498 . 174 Thermal 1112 | 24 24 . 1064 Explosive 890 | . . . 890 Electromagnetic 234 | 15 82 49 88 Impact . | . . . . Slashing . | . . . . Piercing . | . . . . Highest Corruption . | . . . . Average Corruption . | . . . . Corruption Purged . | . . . . Corruption Blocked . | . . . . Overload Shots . | . . . . Overflow Damage 28 | . . . 28 Projectiles 11 | . . . 11 Explosions 17 | . . . 17 Melee . | . . . . Knockbacks 4 | . . . 4 Impact . | . . . . Kinetic 3 | . . . 3 Secondary 1 | . . . 1 Self-Inflicted Damage 33 | . . . 33 Shots 1 | . . . 1 Rammed . | . . . . Targets Rammed 1 | . . 1 . Kicked 1 | . . 1 . Crushed . | . . . . Highest Temperature 543 | 284 56 . 543 Average Temperature 120 | 117 18 . 126 Received Heat Transfer 768 | . 84 . 684 Effects 4 | . . . 4 Shutdowns 1 | . . . 1 Interference 2 | . . . 2 Matter Decay 1 | . . . 1 Siege Activations . | . . . . Robots Corrupted . | . . . . Combat Hostiles . | . . . . Parts Fried . | . . . . Impact Corruptions . | . . . . Robots Melted 1 | . . . 1 Combat Hostiles 1 | . . . 1 Parts Melted 2 | . . . 2 Heat Transferred 2024 | 50 50 . 1924 Parts Sabotaged . | . . . . Parts Stolen . | . . . . Parts Stripped . | . . . . Power Chain Reactions 1 | . 1 . . Alert | -11 -10 -10 -9 ------- Run | Yrd Mat Min Mat Peak Influence 767 | 20 219 31 767 Initial 31 | . 13 31 . Average 217 | 12 105 26 455 Maximum Alert Level 3 | . 1 . 3 Low Security (%) 61 | 100 77 100 18 Level 1 13 | . 22 . 16 Level 2 21 | . . . 56 Level 3 3 | . . . 9 Level 4 . | . . . . Level 5 . | . . . . High Security . | . . . . Max Security . | . . . . Squads Dispatched 4 | . 1 . 3 Investigation 1 | . 1 . . Extermination . | . . . . Reinforcement 2 | . . . 2 Assault 1 | . . . 1 Garrison . | . . . . Intercept . | . . . . Searches Triggered . | . . . . Construction Impeded . | . . . . Haulers Reinforced . | . . . . Active Scanning Responses . | . . . . Cargo Convoy Interrupts . | . . . . Stealth | -11 -10 -10 -9 --------- Run | Yrd Mat Min Mat Distress Signals 4 | . . . 4 Communications Jammed . | . . . . Distress Signals . | . . . . Times Spotted 60 | . 10 . 50 Peak Tracking Total 6 | . 4 . 6 Tactical Retreats 1 | . 1 . . Traps | -11 -10 -10 -9 ------- Run | Yrd Mat Min Mat Traps Triggered . | . . . . Indirectly . | . . . . Trap Hack Attempts . | . . . . Triggered . | . . . . Disarmed . | . . . . Reprogrammed . | . . . . Reused . | . . . . Traps Extracted . | . . . . Installed . | . . . . Triggered . | . . . . Machines | -11 -10 -10 -9 ---------- Run | Yrd Mat Min Mat Machines Disabled 4 | . 1 . 3 Max in Single Turn 1 | . 1 . 1 Machines Repaired . | . . . . Machines Dismantled . | . . . . Machines Sabotaged . | . . . . Overloaded Fab Kills . | . . . . Hacking | -11 -10 -10 -9 --------- Run | Yrd Mat Min Mat Machines Accessed 13 | . 9 . 4 Terminals 8 | . 6 . 2 Fabricators . | . . . . Repair Stations 2 | . 1 . 1 Recycling Units 2 | . 2 . . Scanalyzers 1 | . . . 1 Garrison Access . | . . . . Total Hacks 36 | . 27 . 9 Successful 24 | . 16 . 8 Failed 12 | . 11 . 1 Catastrophic 3 | . 3 . . Database Lockouts . | . . . . Manual 1 | . 1 . . Terminals 24 | . 19 . 5 Fabricators . | . . . . Repair Stations 4 | . 2 . 2 Recycling Units 6 | . 6 . . Scanalyzers 2 | . . . 2 Garrison Access . | . . . . Terminal Hacks 12 | . 8 . 4 Record 2 | . . . 2 Branch Access Points 1 | . 1 . . Locate Traps 2 | . 1 . 1 Dispatch Records 2 | . 2 . . Recall Investigation 2 | . 2 . . Hauler Manifests 1 | . . . 1 Registered Components 1 | . 1 . . Zone Layout 1 | . 1 . . Fabricator Hacks . | . . . . Repair Station Hacks 4 | . 2 . 2 Scan Component 2 | . 1 . 1 Repair 2 | . 1 . 1 Recycling Unit Hacks 6 | . 6 . . Process 2 | . 2 . . Report Inventory 2 | . 2 . . Retrieve Matter 2 | . 2 . . Scanalyzer 2 | . . . 2 Insert Component 1 | . . . 1 Analyze 1 | . . . 1 Garrison Access Hacks . | . . . . Unauthorized Hacks . | . . . . Terminals . | . . . . Fabricators . | . . . . Repair Stations . | . . . . Recycling Units . | . . . . Scanalyzers . | . . . . Garrison Access . | . . . . Data Cores Recovered . | . . . . Used . | . . . . Hacking Detections 9 | . 7 . 2 Full Trace Events 2 | . 2 . . Feedback Events . | . . . . Feedback Blocked . | . . . . Robot Schematics Acquired . | . . . . Robots Built . | . . . . Authchips . | . . . . Time . | . . . . Total Robot Build Rating . | . . . . Part Schematics Acquired 1 | . . . 1 Parts Built . | . . . . Authchips . | . . . . Time . | . . . . Total Part Build Rating . | . . . . Parts Repaired 2 | . 1 . 1 Time 76 | . 26 . 50 Parts Recycled . | . . . . Recycled Matter 145 | . 145 . . Retrieved Matter 145 | . 145 . . Retrieved Components . | . . . . Parts Scanalyzed 1 | . . . 1 Part Schematics Acquired 1 | . . . 1 Parts Damaged . | . . . . Bothacking | -11 -10 -10 -9 ------------ Run | Yrd Mat Min Mat Used RIF Installer . | . . . . Robots Hacked . | . . . . Non-combat . | . . . . Combat . | . . . . Robot Hacks Applied . | . . . . Relay Couplers Released . | . . . . Fabnet Peak Effective % . | . . . . Robots Rewired . | . . . . Allies Hacked . | . . . . Hacks Repelled . | . . . . Allies | -11 -10 -10 -9 -------- Run | Yrd Mat Min Mat Total Allies . | . . . . Largest Group . | . . . . Highest-Rated Group . | . . . . Highest-Rated Ally . | . . . . Total Orders . | . . . . Ally Attacks . | . . . . Total Damage . | . . . . Kills . | . . . . Allies Corrupted . | . . . . Allies Melted . | . . . . Intel | -11 -10 -10 -9 ------- Run | Yrd Mat Min Mat Robot Analysis Total . | . . . . Derelict Logs Recovered . | . . . . Drone Launches . | . . . . Drone Recoveries . | . . . . Exploration | -11 -10 -10 -9 ------------- Run | Yrd Mat Min Mat Turns Passed 2341 | 252 714 459 916 Spaces Moved 1340 | 116 439 362 423 Core 18 | 10 . . 8 Treads . | . . . . Legs 959 | 106 439 312 102 Wheels . | . . . . Hover 361 | . . 48 313 Flight 2 | . . 2 . Fastest Speed 50 | 50 120 90 90 Average Speed 120 | 114 120 116 127 Slowest Speed 250 | 120 120 200 250 Overloaded Moves . | . . . . Propulsion Burnouts . | . . . . Robots Hopped . | . . . . Cave-ins Triggered . | . . . . Exploration Rate (%) 47 | 6 88 56 41 Regions Visited 3 Branch Regions 1 Pre-discovered Areas . | . . . . Known Exits Taken 2 | . 1 1 . Unknown Exits Taken 1 | 1 . . . Scrap Searched 1 | . . 1 . Spaces Dug 11 | 9 2 . . Terrain Destroyed 135 | 10 5 . 120 Melee . | . . . . Projectile 16 | 10 2 . 4 AOE 119 | . 3 . 116 Terrain Rammed . | . . . . Walls Destroyed . | . . . . Machines Disabled . | . . . . Actions | -11 -10 -10 -9 --------- Run | Yrd Mat Min Mat Total 1766 | 158 546 395 667 Wait 192 | 12 48 10 122 Move 1337 | 115 438 361 423 Hop . | . . . . Pick Up 20 | 5 5 5 5 Fast Attach 18 | 7 1 1 9 Attach 13 | . . 1 12 Detach 5 | . . . 5 Swap 24 | 3 9 5 7 Drop 19 | . 7 7 5 Fire 137 | 16 38 4 79 Melee . | . . . . Ram . | . . . . Kick 1 | . . 1 . Crush . | . . . . Escape Stasis . | . . . . Rewire . | . . . . Trap . | . . . . Miscellaneous . | . . . . Route ------- -11/Scrapyard -10/Materials (discovered 4 exits: *Mat x3 / *Min) -10/Mines (discovered 2 exits: *Mat x2) -9/Materials (discovered 1 exit: [*Mat]) History --------- Turn | Location | Event 9 | -11/Scrapyard | Discovered new exit (range 13) 253 | -11/Scrapyard | Entered Materials 318 | -10/Materials | Build established: Mutant 589 | -10/Materials | Discovered new exit (range 16) 666 | -10/Materials | Discovered new exit (range 11) 695 | -10/Materials | Repaired Ion Engine 833 | -10/Materials | Identified exit to Mines 835 | -10/Materials | Discovered new exit (range 12) 901 | -10/Materials | Discovered new exit (range 15) 967 | -10/Materials | Entered Mines 974 | -10/Mines | Received a Rocket Launcher from a helpful Derelict 983 | -10/Mines | Assembled infested the area 1177 | -10/Mines | Discovered new exit (range 11) 1220 | -10/Mines | Identified exit to Materials 1361 | -10/Mines | Discovered exit to Materials (range 7) 1426 | -10/Mines | Entered Materials 1426 | -9/Materials | Evolved 2 slots: Utility x2 1758 | -9/Materials | Lost 4 parts (1n1u2w) 1851 | -9/Materials | Repaired Cmb. Airjet 1968 | -9/Materials | Discovered new exit (range 6) 2083 | -9/Materials | Core integrity fell below 50% 2226 | -9/Materials | First assault squad dispatched 2286 | -9/Materials | Core integrity fell below 20% 2342 | -9/Materials | Destroyed by G-34 Mercenary with Small Laser Last Messages --------------- 02305_ G-34 Mercenary heat short circuits Aluminum Leg. 02308_ L-31 Rogue knocked back. 02308_ L-31 Rogue destroyed. 02311_ G-47 Trooper knocked back. 02316_ G-34 Mercenary heat short circuits Aluminum Leg. 02316_ M-13 Machinist repairs G-47 Trooper. 02316_ R-06 Scavenger collects Imp. Aluminum Leg. 02319_ R-06 Scavenger collects Melee Analysis Suite. 02319_ Acquired 55 matter. 02321_ Carbon-fiber Leg destroyed. 02323_ K-01 Serf collects debris. 02326_ G-34 Mercenary heat damages Backup Plating I. 02327_ G-34 Mercenary overheating. 02342_ O-16 Technician: "IFF HANDSHAKE FAILED. SECURING TERMINAL." Map ----- +----------------------------------------------------+ | ????????????????###?????????############## ###### | | ???????????"##### ###???????############## ###### | | ???????????"### ## #????????????## # | | ??????????? # ##????????????## < # | | ???????????"# ###########??## # | | ??????????? # ! " ###########??## ############ | | ???????????"# ""####!! ]##??## ############ | | ???????????"# % ""####! ]###### [ #########??? | | ????## ? #### #### ###### #########??? | | ????## #######/###### ###### ##### | | ?? %= % ##### | | ?? %% % *%= | | ?? [[! """"" % ####"###### | | ??? [! """"" ##+######## ! == ## | | ??? [! """" # ## # ## | | ???? % # #### ## | | ??? #% #### """ """ ## | | ???? ###+####### + #### # """ """ ## | | ????[ # ### ##### #### # """ """ ## | | ????? # ??????## ##### #### # ## | | ????? # ???????## ##?############ # ## | | ????? # ???????## #??############ ###+#####+## | | ???????????????## #????????????## ?? | | ???????????????## ##???????????## ??????????? | | ???????????????# ############## ??????????? | | ??????????????## g @ ????????? | | ??????????????## mg ????????? | | ??????????????## ????????? | | ??????????????## ## """ ?????????? | | ???????????????######## == """ ??????????? | | ??????????????????????# == """?????????????? | | ??????????????????????# a = ?????????????? | | ??????????????????????# g ????????????? | | ?????????????????????? g ???????????? | | ??????????????????????#### ???????????? | | ?????????????????????????? ????????????? | | ?????????????????????????? ###????????????? | | ??????????????????????????o #??????????????? | | ?????????????????????????? ????????????????? | | ?????????????????????????? ???????????????????? | | ?????????????????????????? ?????????????????????? | | ?????????????????????????????????????????????????? | | ?????????????????????????????????????????????????? | | ?????????????????????????????????????????????????? | | ?????????????????????????????????????????????????? | | ?????????????????????????????????????????????????? | | ?????????????????????????????????????????????????? | | ?????????????????????????????????????????????????? | | ?????????????????????????????????????????????????? | | ?????????????????????????????????????????????????? | +----------------------------------------------------+ Best States ------------- Heat Dissipation 28 Energy Generation 10 Energy Capacity 250 Matter Stores 300 Matter Capacity 300 Sight Range 16 Robot Scan Range 14 Terrain Scan Range 16 Terrain Scan Density 110 Evasion (%) 55 Item Schematics ----------------- Adv. Beam Cannon | -9/Materials | Scanalyzed Robot Schematics ------------------ None Fabricated ------------ Nothing Alien Tech Used ----------------- None Achievements -------------- GoHome() It's Just You Challenges ------------ None Game ------ Seed DisruptorDeliverySabre Manual? 0 Play Time 00:42:48 Cumulative 17.5 hours Start 2024.04.16 @ 07:48:49 End 2024.04.16 @ 08:47:27 Sessions 1 Manual Loads 0 Difficulty Rogue Special Mode None Game No. 16 Rogue 16 Adventurer 0 Explorer 0 Win Type - Total 0 Types 0/0/0/0/0/0/0/0/0 Lore% 2 Gallery% 14 Achievement% 8 Wizard Run 0 Options --------- Layout 1 ASCII 0 Keyboard 0 Movement Mouse Keybinds 0 Fullscreen 1 Font 24/Smallcaps Map View 50x35 Zoom Use 0% Tactical HUD 1 Map Filters NONE Filters NONE Steam 1 RUN: 13400931-b0c5-45ab-b633-8507567af896